bitfinex/quotes_ETHUSD_20241231
["timestamp","ask_amount","ask_price","bid_price","bid_amount"]
[1735657725592,2.92975,3413.3,3412.4,0.7627]
[1735657725798,0.26788767,3413.2,3412.4,0.7627]
[1735657726019,3.53463586,3413.2,3412.5,0.05715856]
[1735657726221,0.26674819,3413.2,3412.5,0.05715856]
[1735657726421,0.26674819,3413.2,3412.6,0.7627]
[1735657726726,0.26674819,3413.2,3412.7,2.98679046]
[1735657727018,0.26674819,3413.1,3412.7,0.05657046]
[1735657727500,3.19673819,3413.0,3412.2,0.7627]
[1735657727702,3.19673819,3413.0,3412.3,0.05646265]
[1735657727901,0.26674819,3413.0,3412.3,0.05646265]
[1735657728082,0.26674819,3412.9,3412.3,2.98695265]
[1735657728283,0.26674819,3412.9,3412.3,0.05646265]
[1735657728604,0.26674819,3412.8,3412.3,0.05646265]
[1735657728995,0.26674819,3412.8,3412.4,2.93044]
[1735657729196,0.26674819,3412.8,3412.6,3.69297]
[1735657729447,0.30360926,3414.1,3412.6,0.7627]
[1735657729588,2.92965,3413.4,3412.7,0.05650069]
[1735657730130,3.0,3413.6,3412.7,0.05650069]
[1735657730485,5.92947,3413.6,3412.7,0.05650069]
[1735657730885,0.30360926,3414.1,3412.7,0.43145076]
[1735657731113,2.9296,3413.5,3412.6,0.7627]
[1735657731359,2.92982,3413.2,3412.6,0.7627]
[1735657731587,5.92981,3413.2,3412.7,0.0554192]
[1735657731801,3.0,3413.7,3412.7,0.0554192]
[1735657732002,2.92938,3413.7,3412.7,0.0554192]
[1735657732212,2.92922,3413.9,3412.8,0.37484192]
[1735657732416,2.92922,3413.9,3412.8,0.05539384]
[1735657732735,3.0,3413.8,3412.9,2.98541847]
[1735657733450,0.30360926,3414.1,3412.9,0.05536847]
[1735657733451,3.23264926,3414.1,3412.9,0.05536847]
[1735657733621,3.23264926,3414.1,3413.7,2.92935]
[1735657733622,0.30360926,3414.1,3413.7,2.92935]
[1735657733785,0.30360926,3414.1,3413.8,0.8064]
[1735657733987,0.30360926,3414.1,3413.9,2.92912]
[1735657734227,0.30360926,3414.1,3414.0,2.92911]
[1735657734452,0.30360926,3414.1,3414.0,0.05500582]
[1735657734778,0.30360926,3414.1,3413.8,0.8064]
[1735657735035,0.30360926,3414.1,3414.0,0.05476872]
[1735657735253,0.30360926,3414.1,3413.9,0.0547871]
[1735657735411,9.26e-06,3414.1,3414.0,1.23993951]
[1735657735613,9.26e-06,3414.1,3414.0,7.99641683]
[1735657736006,9.26e-06,3414.1,3414.0,10.21455683]
[1735657736701,9.26e-06,3414.1,3414.0,12.72403683]
[1735657736964,9.26e-06,3414.1,3414.0,7.99641683]
[1735657737265,9.26e-06,3414.1,3414.0,7.61737412]
[1735657738157,2.928,3415.3,3414.0,7.61737412]
[1735657738447,3.0,3415.4,3414.0,7.61737412]
[1735657738595,0.2504,3415.5,3414.8,2.92841]
[1735657738800,0.2504,3415.5,3414.9,0.8064]
[1735657738999,0.2504,3415.5,3414.9,0.85976922]
[1735657739247,3.2504,3415.5,3414.9,0.85976922]
[1735657739551,3.2504,3415.5,3414.9,0.8064]
[1735657739752,3.17825,3415.5,3415.0,0.05335085]
[1735657739915,0.2504,3415.5,3415.0,0.05335085]
[1735657740263,3.0,3415.4,3415.0,0.05335085]
[1735657740553,3.0,3415.0,3414.0,0.8064]
[1735657740715,2.92875,3414.5,3414.0,0.8064]
[1735657741538,2.92854,3414.7,3414.0,0.8064]
[1735657741704,2.92831,3415.0,3414.1,0.0535162]
[1735657742099,0.2504,3415.5,3414.4,2.92874]
[1735657742517,0.2504,3415.5,3414.5,0.0534427]
[1735657743035,3.0,3415.2,3414.5,0.0534427]
[1735657743351,2.92847,3414.8,3414.0,0.8064]
[1735657743516,2.92852,3414.7,3414.6,0.05342433]
[1735657743715,2.92852,3414.7,3414.0,0.8064]
[1735657743963,2.92852,3414.7,3414.6,0.05342433]
[1735657744129,2.92852,3414.7,3414.0,0.8064]
[1735657744332,2.92852,3414.7,3414.6,0.05342433]
[1735657744528,2.92797,3415.4,3414.0,0.8064]
[1735657744766,0.2504,3415.5,3414.6,3.88079165]
[1735657744946,0.2504,3415.5,3414.7,0.8064]
[1735657745113,0.2504,3415.5,3414.7,0.85980596]
[1735657745321,0.2504,3415.5,3414.8,2.9284]
[1735657745518,0.2504,3415.5,3415.1,3.82736732]
[1735657745819,0.2504,3415.5,3415.3,0.8064]
[1735657746246,0.2504,3415.5,3415.4,0.05327739]
[1735657746472,0.2504,3415.5,3415.4,2.98118739]
[1735657746779,0.2504,3415.5,3415.4,6.47887739]
[1735657746943,0.2504,3415.5,3415.4,3.78758739]
[1735657747148,0.2504,3415.5,3415.4,4.93445443]
[1735657747763,2.92612,3417.5,3416.4,3.68185]
[1735657747963,2.92624,3417.4,3416.4,3.68185]
[1735657748162,2.92624,3417.4,3416.5,0.05184216]
[1735657748545,0.7606,3417.6,3416.5,0.05184216]
[1735657748745,0.7767,3418.0,3416.5,0.42521138]
[1735657749032,2.92681,3416.7,3416.5,0.05184216]
[1735657749269,2.92665,3416.9,3416.5,0.05184216]
[1735657749469,2.92678,3416.8,3415.9,0.7548]
[1735657749638,0.7767,3417.0,3415.9,0.7548]
[1735657749639,3.7767,3417.0,3415.9,0.7548]
[1735657749836,2.92716,3416.3,3416.0,0.04780628]
[1735657750078,5.92731,3416.1,3416.0,0.04780628]
[1735657750236,2.92813,3415.2,3414.6,0.7548]
[1735657750436,3.0,3415.7,3414.6,0.7548]
[1735657750702,0.7767,3416.1,3414.0,3.82736732]
[1735657750703,3.0,3415.5,3414.7,0.048045]
[1735657750996,3.0,3415.3,3414.2,0.7548]
[1735657751139,2.92808,3415.2,3414.8,0.04802663]
[1735657751343,2.92772,3415.7,3414.2,1.123199]
[1735657751543,2.92798,3415.4,3414.9,0.04800826]
[1735657751853,0.7767,3416.1,3414.2,1.123199]
[1735657752054,2.92813,3415.2,3414.2,1.123199]
[1735657752250,2.92813,3415.2,3414.3,0.83608312]
[1735657752460,2.92794,3415.4,3414.3,0.83608312]
[1735657752677,2.92756,3415.9,3414.3,0.83608312]
[1735657753092,0.7767,3416.1,3414.3,3.76492312]
[1735657753394,2.92834,3414.9,3414.3,0.04811849]
[1735657753607,2.92861,3414.6,3414.3,0.04811849]
[1735657753800,3.0,3415.2,3414.3,0.04811849]
[1735657753945,3.0,3415.2,3414.2,0.7548]
[1735657754142,3.0,3415.2,3414.4,0.04810012]
[1735657754491,2.92733,3416.1,3414.6,0.7973]
[1735657754693,2.9274,3416.0,3414.6,0.7973]
[1735657754891,1.60454599,3417.1,3414.8,5.85684]
[1735657754892,0.8274,3416.7,3414.8,5.85684]
[1735657755191,0.8274,3416.7,3414.5,3.87544907]
[1735657755192,0.8274,3416.7,3414.9,0.7973]
[1735657755331,0.8274,3416.7,3414.9,0.84638667]
[1735657755332,3.0,3416.1,3414.9,0.84638667]
[1735657755537,0.8274,3416.7,3414.9,0.84638667]
[1735657755781,0.8274,3416.7,3415.0,3.82736732]
[1735657755989,0.8274,3417.3,3415.2,0.7973]
[1735657756302,2.92722,3416.3,3415.2,0.7973]
[1735657756602,2.92657,3417.0,3415.3,0.0463662]
[1735657756797,3.0,3416.8,3415.3,0.0463662]
[1735657757100,0.8274,3416.7,3415.3,0.0463662]
[1735657757238,3.0,3416.5,3415.3,0.0463662]
[1735657757438,2.92791,3415.4,3415.3,0.0463662]
[1735657757639,0.8274,3415.7,3414.8,0.7973]
[1735657757834,2.92793,3415.4,3414.8,0.7973]
[1735657758498,2.92793,3415.4,3414.9,0.04643966]
[1735657758811,2.92776,3415.6,3414.9,0.04643966]
[1735657758939,0.8274,3416.2,3414.9,0.04643966]
[1735657758940,3.0,3415.8,3414.9,0.04643966]
[1735657759140,3.0,3415.8,3414.2,0.7973]
[1735657759511,2.92798,3415.4,3414.3,2.92881]
[1735657759790,2.92789,3415.5,3414.4,0.04653152]
[1735657759998,0.8274,3416.2,3414.4,0.04653152]
[1735657759999,2.92792,3415.4,3414.4,0.04653152]
[1735657760139,2.92792,3415.4,3414.4,2.97529152]
[1735657760339,2.92777,3415.6,3414.5,2.92865]
[1735657760593,2.92758,3415.8,3414.6,3.22608815]
[1735657760809,2.92758,3415.8,3414.7,3.72581]
[1735657760939,3.0,3415.7,3414.7,0.7973]
[1735657761313,2.92734,3416.1,3414.7,0.7973]
[1735657761314,3.0,3415.9,3414.7,0.7973]
[1735657761442,2.92834,3414.9,3414.8,0.04645803]
[1735657761643,2.92852,3414.7,3414.3,0.7973]
[1735657761887,3.8274,3415.2,3414.3,0.7973]
[1735657762096,2.92873,3414.5,3414.3,0.7973]
[1735657762397,0.8274,3415.2,3413.3,3.74044]
[1735657762398,3.0,3415.0,3413.3,3.74044]
[1735657762556,3.0,3415.0,3413.4,0.5188144]
[1735657762902,2.92877,3414.4,3413.4,2.97633531]
[1735657763080,2.92867,3414.6,3413.5,2.92953]
[1735657763247,3.0,3414.5,3413.5,2.92952]
[1735657763442,3.0,3414.5,3413.6,0.04667855]
[1735657763980,2.92877,3414.4,3413.6,0.04667855]
[1735657764135,0.8274,3415.2,3413.3,0.8108]
[1735657764136,3.0,3414.7,3413.3,0.8108]
[1735657764337,2.92911,3414.0,3413.7,0.04666016]
[1735657764640,2.92868,3414.5,3413.3,0.8108]
[1735657764641,3.0,3414.4,3413.3,0.8108]
[1735657764847,3.0,3414.4,3413.8,0.04664178]
[1735657765086,3.0,3414.4,3413.4,2.92961]
[1735657765290,4.05896812,3415.2,3413.0,2.92996]
[1735657765291,2.9286,3414.6,3413.6,0.8108]
[1735657765513,5.92842,3414.8,3413.6,0.8108]
[1735657765716,2.92851,3414.7,3413.7,0.04666016]
[1735657765865,2.92883,3414.4,3413.6,0.8108]
[1735657766047,2.92862,3414.6,3413.6,0.8108]
[1735657766246,2.92862,3414.6,3413.6,3.74023]
[1735657766466,3.0,3414.9,3413.7,0.04666016]
[1735657766667,1.13079812,3415.2,3413.7,2.97602016]
[1735657766668,4.13079812,3415.2,3413.7,2.97602016]
[1735657766902,3.0,3414.7,3413.7,0.04666016]
[1735657767111,3.0,3414.7,3413.8,2.92927]
[1735657767253,2.92878,3414.4,3413.7,0.04666016]
[1735657767453,3.0,3415.0,3413.8,0.04664178]
[1735657767852,3.0,3415.0,3413.6,0.8108]
[1735657768154,3.0,3414.5,3413.7,0.0473555]
[1735657768349,3.0,3415.0,3413.7,0.0473555]
[1735657768587,2.92886,3414.3,3413.7,0.0473555]
[1735657770208,3.82736732,3414.6,3413.7,0.0473555]
[1735657770414,5.92928,3413.8,3413.7,0.0473555]
[1735657770751,2.92971,3413.3,3412.4,0.8108]
[1735657771597,3.72901,3413.3,3412.4,0.8108]
[1735657772403,2.92971,3413.3,3412.4,0.8108]
[1735657773917,3.72865,3413.8,3412.4,0.8108]
[1735657773918,0.7993,3413.8,3412.4,0.8108]
[1735657774116,2.92971,3413.3,3412.4,0.8108]
[1735657774315,5.92971,3413.3,3412.4,0.8108]
[1735657775276,2.92953,3413.6,3412.4,0.8108]
[1735657775625,1.18624995,3414.0,3413.3,0.7811]
[1735657775776,2.92912,3414.0,3413.3,0.7811]
[1735657775977,2.92909,3414.1,3413.4,0.04122144]
[1735657776175,1.18624995,3414.2,3413.4,0.26822398]
[1735657776381,1.18624995,3414.2,3413.4,3.15661254]
[1735657776729,1.18624995,3414.2,3413.5,0.04120306]
[1735657777078,2.92892,3414.3,3413.5,0.04120306]
[1735657777277,5.92843,3414.8,3413.5,0.58388102]
[1735657777519,3.0,3414.4,3413.5,0.58388102]
[1735657777739,2.92853,3414.7,3413.6,0.7811]
[1735657777922,1.18624995,3414.9,3413.6,0.82228468]
[1735657778127,2.92842,3414.8,3413.6,0.82228468]
[1735657778325,2.92886,3414.3,3413.7,0.39788172]
[1735657778527,2.92886,3414.3,3413.7,0.04131917]
[1735657779047,3.0,3415.1,3413.7,0.04131917]
[1735657779226,3.0,3414.7,3413.7,0.04131917]
[1735657779538,3.0,3414.3,3413.6,0.7811]
[1735657779695,2.92923,3413.9,3413.6,0.7811]
[1735657780540,0.8289,3414.5,3413.7,0.04010496]
[1735657780697,2.92913,3414.0,3413.2,1.447704]
[1735657780897,2.92913,3414.0,3413.3,0.0403398]
[1735657781397,2.929,3414.2,3413.4,0.8192]
[1735657781604,0.8289,3414.5,3413.4,0.85952141]
[1735657781946,2.92932,3413.8,3413.4,0.8192]
[1735657782151,2.92937,3413.7,3413.5,0.04030303]
[1735657782514,3.0,3413.8,3413.5,0.04030303]
[1735657782767,3.0,3414.0,3413.5,0.04030303]
[1735657782975,3.0,3414.0,3413.4,0.8192]
[1735657783251,3.0,3414.0,3413.5,0.04030303]
[1735657783406,5.92912,3414.0,3413.5,0.04030303]
[1735657783601,3.0,3414.0,3413.5,0.04030303]
[1735657784014,1.18624995,3414.9,3413.5,0.04030303]
[1735657784174,1.18624995,3414.9,3413.7,0.8192]
[1735657784371,1.18624995,3414.9,3413.8,0.04024788]
[1735657784778,2.92856,3414.7,3413.8,0.04024788]
[1735657785124,3.0,3414.6,3413.7,0.8192]
[1735657785337,2.92859,3414.7,3413.7,0.8192]
[1735657785542,2.92859,3414.7,3413.8,0.04024788]
[1735657786032,2.92868,3414.6,3413.8,0.04024788]
[1735657786545,2.9287,3414.5,3413.8,0.04024788]
[1735657786977,2.92878,3414.4,3413.8,0.04024788]
[1735657787162,0.8289,3415.2,3413.8,0.04024788]
[1735657787342,2.92883,3414.4,3413.7,0.8192]
[1735657787669,0.8289,3415.2,3413.7,0.8192]
[1735657787670,2.92841,3414.9,3413.8,0.04024788]
[1735657787889,3.0,3414.8,3413.8,0.04024788]
[1735657788030,2.92864,3414.6,3413.7,0.8192]
[1735657788381,2.92864,3414.6,3413.8,0.04003942]
[1735657788862,2.92839,3414.9,3413.9,3.74837]
[1735657789070,2.92839,3414.9,3414.0,3.30794094]
[1735657789071,3.0,3414.8,3414.0,3.30794094]
[1735657789232,2.92821,3415.1,3414.2,0.8192]
[1735657789427,1.18624995,3415.5,3414.2,0.8192]
[1735657789626,2.92867,3414.6,3414.3,0.0398989]
[1735657789862,2.92832,3415.0,3414.3,0.0398989]
[1735657790043,2.92852,3414.7,3414.2,0.8192]
[1735657790224,2.9286,3414.6,3414.2,0.8192]
[1735657790771,2.9286,3414.6,3414.3,0.0398989]
[1735657790971,2.92842,3414.8,3414.2,0.8192]
[1735657791169,2.92885,3414.3,3414.2,0.8192]
[1735657791331,2.92901,3414.2,3413.3,0.8192]
[1735657791524,2.92902,3414.1,3413.4,0.04006431]
[1735657791742,2.92954,3413.5,3413.3,0.8192]
[1735657791977,2.92963,3413.4,3413.2,1.447704]
[1735657792343,5.92963,3413.4,3413.3,0.03844489]
[1735657792546,5.92963,3413.4,3413.2,1.447704]
[1735657792763,2.92949,3413.6,3413.2,1.447704]
[1735657792933,2.92956,3413.5,3413.3,0.03844489]
[1735657793134,2.92953,3413.6,3413.2,1.447704]
[1735657793369,2.92953,3413.6,3413.4,0.03842651]
[1735657793575,2.92953,3413.6,3413.2,1.447704]
[1735657793748,2.92953,3413.6,3413.3,0.03844489]
[1735657793947,2.92953,3413.6,3413.2,1.447704]
[1735657794130,2.92931,3413.8,3413.3,0.03844489]
[1735657794338,2.92908,3414.1,3413.2,1.6743944]
[1735657794652,2.92912,3414.0,3413.3,0.03844489]
[1735657795047,2.92896,3414.2,3413.3,0.03844489]
[1735657795248,4.18624995,3414.4,3413.4,0.7863]
[1735657795551,1.18624995,3414.4,3413.6,0.7863]
[1735657795750,1.18624995,3414.4,3413.7,2.96766136]
[1735657795981,1.18624995,3414.7,3413.7,2.96766136]
[1735657796279,1.18624995,3414.7,3413.9,0.7863]
[1735657797392,1.18624995,3415.1,3413.9,0.7863]
[1735657798702,1.18624995,3415.2,3413.9,0.7863]
[1735657800409,3.0,3415.0,3413.9,0.7863]
[1735657800697,0.8014,3414.8,3413.5,0.7863]
[1735657801052,3.0,3415.0,3413.5,0.7863]
[1735657801053,1.18624995,3415.2,3413.5,0.7863]
[1735657801602,1.18624995,3415.2,3413.7,0.7863]
[1735657801890,1.18624995,3414.6,3413.7,0.7863]
[1735657802672,1.18624995,3414.6,3413.8,0.82447929]
[1735657802852,1.18624995,3415.1,3413.8,0.82447929]
[1735657803054,1.18624995,3415.1,3414.0,0.7863]
[1735657803285,1.18624995,3415.1,3414.2,0.7863]
[1735657803820,1.18624995,3415.1,3414.4,0.7863]
[1735657803956,2.37249991,3415.4,3414.4,0.7863]
[1735657803957,1.18624995,3415.2,3414.4,0.7863]
[1735657805952,0.18624995,3415.2,3414.4,0.7863]
[1735657806393,0.18624995,3415.2,3414.5,0.03806456]
[1735657806636,0.18624995,3415.2,3414.6,0.7863]
[1735657806840,0.18624995,3415.2,3414.6,0.82434619]
[1735657807007,1.77937493,3415.7,3414.6,0.82434619]
[1735657807469,1.77937493,3415.7,3414.6,0.7863]
[1735657807762,1.77937493,3415.7,3415.0,0.7863]
[1735657808105,1.77937493,3416.5,3415.1,0.03739873]
[1735657808301,3.41256267,3416.6,3415.2,0.7554]
[1735657808302,0.41256267,3416.6,3415.2,0.7554]
[1735657808551,3.0,3416.8,3415.2,0.7554]
[1735657808734,3.36786026,3416.9,3414.7,0.41541603]
[1735657808735,3.36786026,3416.9,3415.4,0.7554]
[1735657809068,3.0,3416.8,3415.5,0.03692955]
[1735657809852,0.8014,3417.0,3415.5,0.7554]
[1735657810258,0.8014,3417.0,3415.6,0.03691119]
[1735657810563,1.80841152,3416.9,3415.8,3.36786026]
[1735657810722,1.80841152,3416.9,3416.3,0.7554]
[1735657811050,1.80841152,3416.9,3416.4,0.44764615]
[1735657811551,1.80841152,3416.9,3416.5,0.7554]
[1735657811849,1.80841152,3416.9,3416.5,0.79025772]
[1735657812058,1.80841152,3416.9,3416.5,0.03485772]
[1735657812211,2.22097419,3416.9,3416.5,0.03485772]
[1735657812564,0.41256267,3416.9,3415.7,0.7554]
[1735657813254,0.41256267,3416.9,3415.8,0.03327064]
[1735657813419,3.0,3416.8,3415.8,0.03327064]
[1735657813620,0.7662,3417.1,3415.7,0.7554]
[1735657813829,1.80841152,3417.0,3415.9,0.03325228]
[1735657814027,1.80841152,3417.0,3416.0,0.7554]
[1735657814321,1.80841152,3417.0,3416.0,0.78863393]
[1735657814748,1.80841152,3417.0,3416.2,3.36786026]
[1735657815069,1.80841152,3417.0,3416.3,0.78857886]
[1735657815371,4.21962689,3418.0,3416.3,0.78857886]
[1735657815372,2.57461152,3418.1,3416.4,0.41564391]
[1735657815649,2.57461152,3418.1,3416.5,0.7554]
[1735657816159,1.80841152,3418.1,3416.7,0.7554]
[1735657816450,1.80841152,3418.1,3416.8,0.03308711]
[1735657816668,1.80841152,3418.1,3416.9,0.7554]
[1735657816863,0.30301145,3418.2,3417.2,0.7554]
[1735657817366,0.30301145,3418.2,3417.3,0.03299538]
[1735657818227,0.30301145,3418.2,3417.4,0.7554]
[1735657818452,0.7662,3418.8,3417.4,0.78837704]
[1735657818651,0.30307092,3418.7,3417.4,0.7554]
[1735657818810,0.30307092,3418.7,3417.5,0.03234176]
[1735657819242,0.30307092,3418.7,3417.6,0.7554]
[1735657819424,0.30307092,3418.7,3417.6,0.78772342]
[1735657819642,1.96611767,3419.4,3417.7,0.41555837]
[1735657819838,0.30305706,3419.2,3417.7,0.03219421]
[1735657820154,3.36786026,3419.0,3417.7,0.03219421]
[1735657820339,0.30305706,3419.2,3417.7,0.03219421]
[1735657820660,0.30305706,3419.2,3417.6,0.7554]
[1735657820957,0.30305706,3419.2,3417.8,0.03204422]
[1735657821115,0.30305706,3419.2,3417.7,0.03197249]
[1735657821315,0.30305706,3419.2,3418.0,0.7554]
[1735657821526,0.06925706,3419.6,3418.0,0.7554]
[1735657821829,0.06925706,3419.6,3418.1,0.03189914]
[1735657822210,0.57219358,3420.0,3418.2,0.7659]
[1735657822658,0.57219358,3420.0,3418.3,0.79668822]
[1735657822812,7.37826536,3420.2,3418.3,0.79668822]
[1735657823377,4.95594735,3420.2,3418.4,0.7659]
[1735657823727,4.56985384,3420.2,3418.4,0.79637204]
[1735657823928,3.56985384,3420.2,3418.4,0.79637204]
[1735657824661,2.19450503,3420.7,3418.4,0.79637204]
[1735657824662,3.0,3420.4,3418.4,0.79637204]
[1735657824866,3.0,3420.4,3418.5,0.7659]
[1735657825213,3.0,3420.4,3418.6,0.03019299]
[1735657825519,2.7715,3420.4,3418.7,0.7659]
[1735657825720,0.7715,3420.7,3418.8,0.03015634]
[1735657825955,0.7715,3420.7,3419.0,4.13376026]
[1735657826136,0.80841152,3421.4,3419.5,0.7659]
[1735657826478,3.36786026,3420.9,3419.6,0.02991974]
[1735657826622,0.36786026,3420.9,3419.6,0.02991974]
[1735657826824,0.36786026,3420.9,3419.5,0.7659]
[1735657827426,3.36786026,3421.1,3419.5,0.7659]
[1735657827784,2.0,3421.0,3419.5,0.7659]
[1735657828356,3.36786026,3421.1,3419.5,0.7659]
[1735657828753,2.36786026,3421.1,3419.5,0.7659]
[1735657829157,1.36786026,3421.1,3419.5,0.7659]
[1735657829359,1.36786026,3421.1,3419.6,0.02991974]
[1735657829569,0.13936026,3421.2,3419.7,0.7659]
[1735657829747,0.13936026,3421.2,3419.8,0.02988311]
[1735657829943,2.50722052,3421.4,3419.8,0.02988311]
[1735657830442,2.0,3421.3,3419.8,0.02988311]
[1735657830649,3.36786026,3421.0,3419.8,0.02988311]
[1735657830878,0.38609351,3421.2,3419.8,0.02988311]
[1735657831049,3.36786026,3421.2,3419.8,0.02988311]
[1735657831246,2.36786026,3421.2,3419.7,0.7659]
[1735657831786,1.36786026,3421.2,3419.7,0.7659]
[1735657832090,3.51941385,3421.6,3419.9,0.7659]
[1735657832301,3.75395377,3421.9,3419.9,0.7659]
[1735657832497,3.75395377,3421.9,3420.0,0.82470325]
[1735657832663,3.36786026,3421.9,3420.0,0.82470325]
[1735657832993,3.36786026,3421.5,3420.0,0.82470325]
[1735657833199,3.0,3421.4,3420.0,0.82470325]
[1735657833892,4.15759351,3421.8,3420.0,0.82470325]
[1735657834122,3.7715,3421.8,3420.0,0.82470325]
[1735657834672,3.0,3421.4,3420.0,0.82470325]
[1735657834867,2.0,3421.4,3420.0,0.82470325]
[1735657835090,0.7715,3421.8,3420.0,0.82470325]
[1735657835892,3.36786026,3421.3,3420.0,0.82470325]
[1735657836399,2.36786026,3421.3,3420.0,0.7659]
[1735657836896,1.36786026,3421.3,3420.0,0.7659]
[1735657837052,3.38609351,3421.8,3420.0,0.7659]
[1735657837252,3.38609351,3421.8,3420.1,0.05529675]
[1735657837521,3.36786026,3421.5,3420.1,0.05529675]
[1735657837651,3.088,3421.5,3420.1,0.05529675]
[1735657837850,3.36786026,3420.8,3419.5,0.8252]
[1735657838062,5.45586026,3420.8,3419.5,0.8252]
[1735657838296,2.6014,3420.7,3419.5,0.8252]
[1735657838502,1.6014,3420.7,3419.5,0.8252]
[1735657838996,0.6014,3420.7,3419.5,0.8252]
[1735657839368,0.6014,3420.7,3419.6,0.05374013]
[1735657839569,0.6014,3420.7,3419.7,0.8252]
[1735657839999,0.6014,3420.7,3419.8,0.05370173]
[1735657840302,0.6014,3420.7,3419.7,0.8252]
[1735657840603,0.6014,3420.7,3419.8,0.05343507]
[1735657840993,0.6014,3420.7,3419.7,0.8252]
[1735657841309,0.6014,3420.7,3419.7,0.7252]
[1735657842208,2.6014,3421.1,3419.7,0.7252]
[1735657843923,3.36786026,3421.2,3419.8,0.05343507]
[1735657844410,3.36786026,3421.2,3419.7,0.7252]
[1735657844411,3.0,3421.1,3419.7,0.7252]
[1735657844909,3.0,3421.1,3419.8,0.0539536]
[1735657845266,3.0,3421.1,3419.7,0.7252]
[1735657845497,3.0,3421.1,3419.9,0.0539344]
[1735657845698,3.0,3421.1,3419.8,0.05396051]
[1735657845893,3.0,3421.1,3419.7,0.7252]
[1735657847486,11.69248,3421.0,3419.7,0.7252]
[1735657847686,3.0,3420.9,3419.7,0.7252]
[1735657847887,3.0,3420.4,3419.7,0.7252]
[1735657848090,2.92405,3420.0,3419.7,0.7252]
[1735657848680,2.92405,3420.0,3419.8,0.05400892]
[1735657848883,2.92405,3420.0,3419.7,0.7252]
[1735657849127,5.92405,3420.0,3419.9,0.05398972]
[1735657849284,5.92405,3420.0,3419.8,0.05400892]
[1735657849485,5.92405,3420.0,3419.7,0.7252]
[1735657849699,5.92405,3420.0,3419.9,0.05398972]
[1735657849925,5.92405,3420.0,3419.7,0.7252]
[1735657850420,2.92405,3420.0,3419.8,0.05400892]
[1735657850721,2.92405,3420.0,3419.7,0.7252]
[1735657851098,2.92405,3420.0,3419.8,0.05435462]
[1735657851296,2.92312,3421.0,3419.7,0.7252]
[1735657851511,2.92347,3420.6,3419.7,0.7252]
[1735657851725,2.92348,3420.6,3419.9,0.8252]
[1735657852045,2.92369,3420.4,3419.9,0.8252]
[1735657852183,2.92369,3420.4,3420.0,0.05431623]
[1735657852535,2.92319,3421.0,3419.9,0.8252]
[1735657852834,2.92249,3421.8,3420.2,0.7625]
[1735657853041,2.92349,3420.6,3420.2,0.7625]
[1735657853185,2.92349,3420.6,3420.3,0.05403737]
[1735657853386,3.0,3420.9,3420.3,0.05403737]
[1735657853587,2.92363,3420.4,3420.2,0.7625]
[1735657853837,2.92372,3420.3,3420.2,0.7625]
[1735657854318,5.92372,3420.3,3420.2,0.7625]
[1735657856638,2.92406,3419.9,3419.8,0.7646]
[1735657858870,3.0,3420.3,3419.8,0.7646]
[1735657859163,5.92406,3419.9,3419.8,0.7646]
[1735657860912,3.0,3419.9,3419.8,0.7646]
[1735657861133,3.0,3419.9,3419.8,0.81719406]
[1735657861516,4.12127498,3420.7,3419.8,0.7646]
[1735657861716,2.92369,3420.4,3419.8,0.7646]
[1735657862134,3.0,3420.3,3419.9,0.05265788]
[1735657862668,2.9235,3420.6,3419.8,0.7646]
[1735657862873,1.19781498,3420.8,3419.8,0.7646]
[1735657863033,1.19781498,3420.8,3420.0,0.05263868]
[1735657863034,3.0,3420.4,3420.0,0.05263868]
[1735657863242,3.0,3420.4,3419.9,0.05260947]
[1735657863442,5.92354,3420.5,3419.8,0.7646]
[1735657863620,2.92406,3419.9,3419.8,0.7646]
[1735657863823,5.92406,3419.9,3419.8,0.7646]
[1735657864028,5.92414,3419.8,3419.7,1.444953]
[1735657866240,1.19781498,3420.0,3419.8,0.7646]
[1735657866759,1.19781498,3420.1,3419.9,0.05084504]
[1735657867181,1.19781498,3420.1,3419.9,0.7662]
[1735657867444,1.19781498,3420.1,3420.0,3.74087836]
[1735657867668,1.19781498,3420.1,3420.0,4.83266876]
[1735657867988,0.36451498,3420.1,3420.0,7.00375876]
[1735657868207,0.36451498,3420.8,3420.2,2.92377]
[1735657868340,0.36451498,3420.8,3420.5,3.68966]
[1735657868658,0.36451498,3420.8,3420.6,0.7662]
[1735657868838,0.36451498,3420.8,3420.6,0.81633031]
[1735657869282,2.92297,3421.2,3420.6,0.81633031]
[1735657869584,2.92297,3421.2,3420.6,0.7662]
[1735657870091,2.92305,3421.1,3420.6,0.7662]
[1735657870298,2.92305,3421.1,3420.7,0.04980031]
[1735657870642,2.92269,3421.5,3420.7,0.04980031]
[1735657870643,3.0,3421.5,3420.7,0.04980031]
[1735657870987,3.0,3421.5,3420.6,0.7662]
[1735657871361,2.92334,3420.8,3420.6,0.7662]
[1735657871744,3.0,3421.1,3420.6,0.7662]
[1735657871942,1.79672247,3421.3,3420.6,0.7662]
[1735657872174,1.79672247,3421.3,3420.7,0.8136304]
[1735657872560,1.79672247,3421.3,3420.8,0.37370804]
[1735657872778,1.79672247,3421.3,3420.7,0.8136304]
[1735657873087,2.92263,3421.6,3420.8,0.04744572]
[1735657873289,2.92263,3421.6,3420.9,0.7662]
[1735657873290,3.0,3421.5,3420.9,0.7662]
[1735657873647,3.0,3421.5,3420.9,0.81346091]
[1735657874272,4.79672247,3421.7,3420.9,0.81346091]
[1735657874488,3.0,3421.7,3420.9,0.7662]
[1735657874688,3.0,3421.7,3421.1,0.7887]
[1735657875168,3.0,3421.7,3421.2,0.04719646]
[1735657875489,2.92235,3421.9,3421.2,0.04719646]
[1735657875696,1.79672247,3422.0,3421.3,0.7887]
[1735657875899,4.71899247,3422.0,3421.3,0.83587728]
[1735657876052,2.92241,3421.9,3421.3,0.83587728]
[1735657876395,4.79672247,3422.0,3421.3,0.83587728]
[1735657876596,1.79672247,3422.0,3421.4,2.92273]
[1735657876757,1.79672247,3422.0,3421.6,0.7887]
[1735657876959,1.79672247,3422.2,3421.6,0.7887]